bitfinex-derivatives/quotes_BTCF0:USTF0_20260314
["timestamp","ask_amount","ask_price","bid_price","bid_amount"]
[1773464225644,0.20011978,71080.0,71068.0,0.042206]
[1773464225960,0.042204,71072.0,71062.0,0.0014]
[1773464226161,0.11530089,71070.0,71057.0,0.042212]
[1773464226352,0.11530089,71070.0,71058.0,0.043612]
[1773464227246,0.11530089,71070.0,71058.0,0.042212]
[1773464227451,0.11530089,71070.0,71052.0,0.08531477]
[1773464227452,0.07309589,71070.0,71059.0,0.043611]
[1773464227655,0.07309589,71070.0,71059.0,0.0014]
[1773464227847,0.07309589,71070.0,71059.0,0.043611]
[1773464228052,0.07309589,71070.0,71059.0,0.042211]
[1773464228252,0.07309589,71070.0,71060.0,0.0014]
[1773464229553,0.042206,71069.0,71061.0,0.0014]
[1773464229750,0.07309589,71070.0,71062.0,0.0014]
[1773464230149,0.08482389,71069.0,71062.0,0.0014]
[1773464230355,0.042208,71066.0,71062.0,0.0014]
[1773464230556,0.08482389,71069.0,71063.0,0.0014]
[1773464230557,0.042208,71065.0,71063.0,0.0014]
[1773464231256,0.042208,71065.0,71049.0,0.08531477]
[1773464231257,0.042209,71064.0,71061.0,0.0014]
[1773464231661,0.07309589,71061.0,71051.0,0.042216]
[1773464231866,0.07309589,71061.0,71052.0,0.0014]
[1773464232264,0.042209,71064.0,71051.0,0.042216]
[1773464232466,0.042209,71064.0,71052.0,0.0014]
[1773464234469,0.042209,71064.0,71051.0,0.042216]
[1773464234769,0.042209,71064.0,71053.0,0.0014]
[1773464235269,0.042209,71064.0,71037.0,0.11625838]
[1773464235270,0.08482389,71062.0,71054.0,0.0014]
[1773464235469,0.08482389,71062.0,71055.0,0.0014]
[1773464236072,0.042211,71061.0,71055.0,0.0014]
[1773464238475,0.08482389,71062.0,71035.0,0.15997251]
[1773464238476,0.04221,71063.0,71050.0,0.042217]
[1773464238676,0.04221,71062.0,71051.0,0.0014]
[1773464240070,0.07309589,71061.0,71051.0,0.0014]
[1773464240281,0.04221,71062.0,71051.0,0.0014]
[1773464240471,0.07309589,71061.0,71051.0,0.0014]
[1773464241279,0.07309589,71061.0,71052.0,0.0014]
[1773464242985,0.042211,71060.0,71052.0,0.0014]
[1773464243283,0.07309589,71061.0,71052.0,0.0014]
[1773464246889,0.07309589,71061.0,71051.0,0.042216]
[1773464247091,0.07309589,71061.0,71053.0,0.0014]
[1773464250495,0.11530489,71063.0,71053.0,0.0014]
[1773464255497,0.11530489,71063.0,71052.0,0.042216]
[1773464255797,0.11530489,71063.0,71053.0,0.0014]
[1773464261798,0.11535922,71063.0,71053.0,0.0014]
[1773464262198,0.042208,71065.0,71054.0,0.042215]
[1773464262390,0.07315022,71070.0,71054.0,0.042214]
[1773464262590,0.07875247,71068.0,71054.0,0.042214]
[1773464262798,0.042208,71065.0,71054.0,0.042214]
[1773464263196,0.042208,71065.0,71053.0,0.0014]
[1773464263398,0.042209,71064.0,71053.0,0.0014]
[1773464268199,0.07315022,71063.0,71053.0,0.0014]
[1773464268404,0.14784465,71063.0,71053.0,0.0014]
[1773464268599,0.11536022,71063.0,71054.0,0.0014]
[1773464268801,0.07469443,71062.0,71055.0,0.0014]
[1773464269105,0.07469443,71062.0,71056.0,0.0014]
[1773464269305,0.11690443,71062.0,71056.0,0.0014]
[1773464271102,0.07588196,71062.0,71041.0,0.00070375]
[1773464271304,0.07315022,71051.0,71046.0,0.042219]
[1773464271502,0.07315022,71056.0,71046.0,0.042219]
[1773464271708,0.11809496,71057.0,71046.0,0.042219]
[1773464271902,0.042213,71057.0,71047.0,0.0014]
[1773464274611,0.042213,71057.0,71046.0,0.042219]
[1773464274908,0.042213,71057.0,71048.0,0.0014]
[1773464280010,0.07588196,71056.0,71048.0,0.0014]
[1773464280704,0.07588196,71056.0,71049.0,0.0014]
[1773464280905,0.042213,71057.0,71049.0,0.0014]
[1773464281908,0.042212,71059.0,71049.0,0.0014]
[1773464282313,0.042212,71058.0,71049.0,0.0014]
[1773464283016,0.11536122,71060.0,71049.0,0.043617]
[1773464283315,0.11536122,71060.0,71049.0,0.0014]
[1773464283614,0.19124318,71060.0,71049.0,0.0014]
[1773464283814,0.042212,71059.0,71049.0,0.0014]
[1773464286510,0.042112,71059.0,71049.0,0.0014]
[1773464287615,0.07315022,71060.0,71049.0,0.0014]
[1773464287816,0.042193,71091.0,71050.0,0.15050829]
[1773464288013,0.042193,71091.0,71051.0,0.07735807]
[1773464288014,0.07315022,71080.0,71051.0,0.07735807]
[1773464288216,0.2186902,71079.0,71051.0,0.07735807]
[1773464288413,0.042202,71075.0,71063.0,0.042209]
[1773464288612,0.21864478,71074.0,71064.0,0.0014]
[1773464288815,0.042202,71075.0,71064.0,0.0014]
[1773464289015,0.21864471,71074.0,71064.0,0.0014]
[1773464289213,0.042202,71075.0,71064.0,0.0014]
[1773464289408,0.07315022,71080.0,71066.0,0.042107]
[1773464289614,0.21816662,71079.0,71060.0,0.07735807]
[1773464289814,0.21816662,71078.0,71066.0,0.042207]
[1773464290122,0.21816662,71077.0,71067.0,0.043607]
[1773464290306,0.042201,71078.0,71067.0,0.0014]
[1773464290506,0.21813023,71077.0,71067.0,0.0014]
[1773464290815,0.042201,71078.0,71067.0,0.0014]
[1773464291007,0.21813034,71077.0,71067.0,0.0014]
[1773464291207,0.042201,71078.0,71067.0,0.0014]
[1773464291414,0.21809416,71077.0,71067.0,0.0014]
[1773464291718,0.042201,71078.0,71067.0,0.0014]
[1773464291918,0.2180933,71077.0,71067.0,0.0014]
[1773464292214,0.042201,71078.0,71067.0,0.0014]
[1773464292811,0.042201,71077.0,71067.0,0.0014]
[1773464294420,0.042101,71077.0,71067.0,0.0014]
[1773464295725,0.07588196,71088.0,71067.0,0.0014]
[1773464295920,0.07588196,71086.0,71070.0,0.042205]
[1773464296119,0.29381058,71085.0,71070.0,0.042205]
[1773464296318,0.07588196,71085.0,71070.0,0.042205]
[1773464296520,0.042198,71083.0,71071.0,0.042204]
[1773464297121,0.07315022,71081.0,71069.0,0.042205]
[1773464297626,0.07315022,71081.0,71069.0,0.042005]
[1773464298126,0.07315022,71081.0,71070.0,0.042205]
[1773464298422,0.0014,71088.0,71069.0,0.042205]
[1773464298624,0.042204,71073.0,71070.0,0.0014]
[1773464298814,0.07588196,71073.0,71070.0,0.0014]
[1773464299218,0.11808296,71077.0,71070.0,0.0014]
[1773464299519,0.042202,71075.0,71070.0,0.0014]
[1773464300025,0.042203,71074.0,71070.0,0.0014]
[1773464300226,0.042204,71073.0,71061.0,0.04221]
[1773464300428,0.07588196,71077.0,71055.0,0.07735807]
[1773464300429,0.07305022,71071.0,71062.0,0.0014]
[1773464300618,0.042205,71071.0,71063.0,0.0014]
[1773464300818,0.07315022,71072.0,71064.0,0.0014]
[1773464301023,0.042204,71073.0,71060.0,0.042211]
[1773464301320,0.14749725,71070.0,71051.0,0.07487257]
[1773464301526,0.042206,71068.0,71056.0,0.042213]
[1773464302027,0.042206,71068.0,71057.0,0.0014]
[1773464302528,0.042206,71068.0,71056.0,0.042213]
[1773464302727,0.042206,71068.0,71058.0,0.0014]
[1773464303229,0.042206,71068.0,71059.0,0.0014]
[1773464303726,0.042206,71068.0,71060.0,0.0014]
[1773464303931,0.042207,71067.0,71060.0,0.0014]
[1773464304427,0.042207,71067.0,71061.0,0.0014]
[1773464304816,0.042207,71067.0,71056.0,0.042213]
[1773464305021,0.042207,71067.0,71057.0,0.0014]
[1773464305429,0.042107,71067.0,71058.0,0.0014]
[1773464305617,0.042107,71067.0,71059.0,0.0014]
[1773464308435,0.042107,71067.0,71059.0,0.0013]
[1773464309636,0.042208,71066.0,71059.0,0.0013]
[1773464309828,0.07434703,71069.0,71059.0,0.0013]
[1773464310034,0.042208,71065.0,71059.0,0.0013]
[1773464310232,0.07315022,71070.0,71058.0,0.0014]
[1773464310233,0.042212,71059.0,71058.0,0.0014]
[1773464310827,0.07315022,71060.0,71053.0,0.0014]
[1773464312636,0.042212,71059.0,71048.0,0.042218]
[1773464312834,0.042212,71058.0,71049.0,0.0014]
[1773464313134,0.07315022,71060.0,71050.0,0.0014]
[1773464313135,0.18970825,71060.0,71050.0,0.0014]
[1773464313334,0.18970825,71060.0,71051.0,0.0014]
[1773464313535,0.042212,71059.0,71051.0,0.0014]
[1773464313735,0.042212,71058.0,71051.0,0.0014]
[1773464314342,0.07434703,71059.0,71041.0,0.00070375]
[1773464314542,0.07315022,71051.0,71043.0,0.042221]
[1773464314848,0.07315022,71051.0,71041.0,0.04292575]
[1773464315048,0.07315022,71051.0,71042.0,0.0014]
[1773464315544,0.07315022,71051.0,71042.0,0.043621]
[1773464315742,0.07315022,71051.0,71043.0,0.0014]
[1773464316150,0.07315022,71051.0,71044.0,0.0014]
[1773464316650,0.07315022,71051.0,71045.0,0.0014]
[1773464316853,0.11536422,71055.0,71045.0,0.0014]
[1773464317043,0.07315022,71055.0,71045.0,0.0014]
[1773464317245,0.0014,71065.0,71046.0,0.0014]
[1773464317246,0.14749725,71051.0,71046.0,0.0014]
[1773464317542,0.07434703,71055.0,71046.0,0.0014]
[1773464317846,0.07434703,71055.0,71047.0,0.0014]
[1773464319044,0.042216,71052.0,71047.0,0.0014]
[1773464320949,0.042217,71051.0,71041.0,0.00210375]
[1773464321155,0.11536722,71051.0,71041.0,0.00210375]
[1773464322151,0.07315022,71060.0,71041.0,0.00210375]
[1773464322350,0.07315022,71060.0,71050.0,0.042217]
[1773464322653,0.042211,71061.0,71051.0,0.0014]
[1773464323949,0.042211,71061.0,71041.0,0.00070375]
[1773464323950,0.07434703,71059.0,71043.0,0.0014]
[1773464324146,0.07314508,71070.0,71043.0,0.0014]
[1773464324147,0.04221,71063.0,71044.0,0.07487257]
[1773464324346,0.042211,71061.0,71050.0,0.07487257]
[1773464324653,0.042211,71061.0,71049.0,0.042217]
[1773464325257,0.07314508,71060.0,71050.0,0.0014]
[1773464329050,0.11535608,71060.0,71050.0,0.0014]
[1773464333659,0.042211,71060.0,71050.0,0.0014]
[1773464334357,0.07314508,71070.0,71050.0,0.07331817]
[1773464334658,0.042207,71067.0,71055.0,0.07191817]
[1773464334955,0.042207,71067.0,71055.0,0.042214]
[1773464335354,0.042207,71067.0,71056.0,0.042213]
[1773464335658,0.042208,71065.0,71053.0,0.042215]
[1773464335859,0.042207,71067.0,71054.0,0.043614]
[1773464336054,0.042208,71066.0,71055.0,0.0014]
[1773464338066,0.042208,71066.0,71055.0,0.043614]
[1773464339372,0.042208,71066.0,71055.0,0.042214]
[1773464339666,0.042208,71066.0,71056.0,0.0014]
[1773464340058,0.042208,71065.0,71056.0,0.0014]
[1773464341964,0.042207,71067.0,71056.0,0.0014]
[1773464344771,0.042207,71068.0,71056.0,0.0014]
[1773464346072,0.042207,71068.0,71057.0,0.042213]
[1773464353374,0.07314508,71080.0,71063.0,0.042209]
[1773464353562,0.042203,71073.0,71064.0,0.0014]
[1773464355381,0.07314508,71080.0,71064.0,0.0014]
[1773464355382,0.07624577,71078.0,71064.0,0.0014]
[1773464355680,0.07624577,71076.0,71065.0,0.0014]
[1773464355980,0.042207,71067.0,71066.0,0.0014]
[1773464356167,0.042207,71067.0,71056.0,0.042213]
[1773464356370,0.042207,71067.0,71057.0,0.0014]
[1773464356569,0.042207,71067.0,71058.0,0.0014]
[1773464356965,0.042206,71069.0,71057.0,0.042213]
[1773464357175,0.042206,71069.0,71058.0,0.0014]
[1773464358982,0.042206,71069.0,71057.0,0.042213]
[1773464359180,0.042206,71069.0,71058.0,0.0014]
[1773464359478,0.042206,71069.0,71057.0,0.042213]
[1773464359685,0.042206,71069.0,71058.0,0.0014]
[1773464360079,0.042206,71069.0,71059.0,0.0014]
[1773464360476,0.042206,71069.0,71057.0,0.042213]
[1773464360678,0.042206,71069.0,71058.0,0.0014]
[1773464361071,0.042206,71069.0,71059.0,0.0014]
[1773464361270,0.07478612,71068.0,71041.0,0.00070375]
[1773464361480,0.07478612,71065.0,71049.0,0.042217]
[1773464361679,0.07314508,71060.0,71050.0,0.0014]
[1773464361880,0.07314508,71060.0,71051.0,0.0014]
[1773464362184,0.07314508,71060.0,71042.0,0.07169806]
[1773464362481,0.07314508,71060.0,71043.0,0.0014]
[1773464362781,0.07314508,71060.0,71044.0,0.0014]
[1773464362979,0.042212,71059.0,71045.0,0.04222]
[1773464363566,0.042212,71059.0,71046.0,0.0014]
[1773464364077,0.042212,71059.0,71045.0,0.04222]
[1773464364381,0.042212,71059.0,71047.0,0.0014]
[1773464364576,0.042212,71059.0,71048.0,0.0014]
[1773464364779,0.042211,71061.0,71048.0,0.043618]
[1773464364972,0.042209,71064.0,71051.0,0.042216]
[1773464365479,0.07478612,71071.0,71052.0,0.042215]
[1773464365679,0.21676994,71070.0,71053.0,0.07169806]
[1773464365881,0.07314508,71070.0,71053.0,0.07169806]
[1773464366479,0.042208,71065.0,71053.0,0.07169806]
[1773464369779,0.042209,71064.0,71053.0,0.07169806]
[1773464372785,0.042206,71070.0,71058.0,0.07169806]
[1773464372989,0.042206,71069.0,71059.0,0.07309806]
[1773464375885,0.042206,71068.0,71059.0,0.07309806]
[1773464376391,0.042206,71068.0,71059.0,0.0014]
[1773464380494,0.042207,71067.0,71059.0,0.0014]
[1773464380694,0.042208,71066.0,71059.0,0.0014]
[1773464382083,0.042208,71066.0,71060.0,0.0014]
[1773464382495,0.042208,71066.0,71054.0,0.042214]
[1773464382683,0.042208,71066.0,71055.0,0.0014]
[1773464383096,0.042208,71066.0,71054.0,0.042214]
[1773464383292,0.042208,71066.0,71055.0,0.043614]
[1773464383594,0.042208,71066.0,71055.0,0.042214]
[1773464383894,0.042208,71066.0,71056.0,0.0014]
[1773464386191,0.042206,71068.0,71057.0,0.042213]
[1773464386394,0.0731313,71070.0,71056.0,0.0014]
[1773464387987,0.042207,71067.0,71056.0,0.0014]
[1773464391295,0.0731313,71070.0,71056.0,0.0014]
[1773464391496,0.14021943,71070.0,71056.0,0.0014]
[1773464392698,0.042207,71067.0,71056.0,0.0014]
[1773464394991,0.042207,71067.0,71056.0,0.043613]
[1773464395395,0.042207,71067.0,71056.0,0.11356736]
[1773464398604,0.042207,71067.0,71057.0,0.06995436]
[1773464399303,0.042206,71069.0,71058.0,0.06995436]
[1773464400409,0.042207,71068.0,71058.0,0.06995436]
[1773464401502,0.06708813,71079.0,71058.0,0.06995436]
[1773464401807,0.06708813,71069.0,71059.0,0.0014]
[1773464402011,0.042207,71068.0,71060.0,0.0014]
[1773464402309,0.042205,71070.0,71061.0,0.0014]
[1773464402510,0.042205,71070.0,71062.0,0.0014]
[1773464403304,0.06708813,71078.0,71062.0,0.0014]
[1773464403509,0.0731313,71090.0,71063.0,0.06995436]
[1773464403805,0.06708813,71094.0,71073.0,0.06995436]
[1773464404105,0.06708813,71094.0,71075.0,0.042202]
[1773464404306,0.06708813,71084.0,71057.0,0.35876633]
[1773464404612,0.06708813,71079.0,71060.0,0.042211]
[1773464404801,0.042203,71073.0,71060.0,0.042211]
[1773464405109,0.06848813,71089.0,71064.0,0.042208]
[1773464405304,0.042201,71077.0,71065.0,0.07135436]
[1773464405496,0.06708813,71099.0,71073.0,0.06995436]
[1773464405702,0.042196,71086.0,71074.0,0.0014]
[1773464406106,0.042196,71086.0,71074.0,0.043602]
[1773464406613,0.042193,71090.0,71077.0,0.11215436]
[1773464406912,0.042195,71088.0,71075.0,0.042202]
[1773464409308,0.042195,71088.0,71076.0,0.0014]
[1773464410209,0.06708813,71095.0,71076.0,0.0014]
[1773464410513,0.042201,71077.0,71058.0,0.06995436]
[1773464410706,0.042201,71077.0,71065.0,0.042208]
[1773464410905,0.042201,71077.0,71066.0,0.0014]
[1773464411108,0.0731313,71080.0,71067.0,0.0014]
[1773464411314,0.042201,71077.0,71068.0,0.0014]
[1773464411511,0.042201,71077.0,71069.0,0.0014]
[1773464411708,0.042201,71077.0,71064.0,0.042208]
[1773464411906,0.042201,71077.0,71065.0,0.0014]
[1773464412110,0.042201,71077.0,71064.0,0.042208]
[1773464412309,0.042201,71077.0,71065.0,0.0014]
[1773464415016,0.042202,71076.0,71066.0,0.0014]
[1773464415717,0.042201,71078.0,71066.0,0.0014]
[1773464416614,0.042199,71080.0,71068.0,0.06995436]
[1773464417014,0.042199,71080.0,71066.0,0.0014]
[1773464417015,0.042196,71087.0,71066.0,0.0014]
[1773464417214,0.042196,71087.0,71067.0,0.06995436]
[1773464418114,0.042196,71087.0,71073.0,0.042203]
[1773464418320,0.042196,71087.0,71074.0,0.0014]
[1773464419618,0.042196,71087.0,71074.0,0.043602]
[1773464419819,0.042193,71091.0,71078.0,0.0422]
[1773464420018,0.042193,71090.0,71078.0,0.11215436]
[1773464420418,0.042194,71089.0,71079.0,0.0014]
[1773464420617,0.14021943,71100.0,71080.0,0.042199]
[1773464420813,0.042193,71091.0,71080.0,0.042199]
[1773464421321,0.042193,71090.0,71080.0,0.06697743]
[1773464421819,0.042193,71090.0,71079.0,0.0014]
[1773464422022,0.042193,71090.0,71079.0,0.043599]
[1773464422415,0.001,71100.0,71080.0,0.06697743]
[1773464422720,0.001,71100.0,71070.0,0.0731313]
[1773464422721,0.001,71100.0,71082.0,0.06697743]
[1773464423022,0.042192,71093.0,71083.0,0.0014]
[1773464423413,0.042192,71093.0,71084.0,0.0014]
[1773464423617,0.04219,71095.0,71084.0,0.0014]
[1773464424823,0.04219,71096.0,71084.0,0.043596]
[1773464425321,0.06858727,71109.0,71088.0,0.042194]
[1773464425625,0.042187,71101.0,71089.0,0.10917043]
[1773464425924,0.042187,71101.0,71089.0,0.06697743]
[1773464426219,0.06858727,71109.0,71085.0,0.06697743]
[1773464426418,0.06858727,71107.0,71085.0,0.06697743]
[1773464426618,0.042188,71099.0,71087.0,0.042195]
[1773464427322,0.042189,71098.0,71087.0,0.042195]
[1773464427718,0.042189,71098.0,71085.0,0.10917343]
[1773464428221,0.042188,71099.0,71087.0,0.042195]
[1773464428412,0.042188,71099.0,71088.0,0.0014]
[1773464428823,0.042188,71099.0,71087.0,0.042195]
[1773464429027,0.042188,71099.0,71088.0,0.0014]
[1773464429622,0.042187,71101.0,71088.0,0.0014]
[1773464430023,0.042187,71101.0,71088.0,0.043594]
[1773464430223,0.06858727,71109.0,71088.0,0.0014]
[1773464430424,0.20132778,71108.0,71088.0,0.0014]
[1773464430724,0.06858727,71107.0,71088.0,0.0014]
[1773464430929,0.042188,71099.0,71088.0,0.0014]
[1773464431328,0.042187,71101.0,71088.0,0.0014]
[1773464432020,0.042186,71103.0,71090.0,0.10917043]
[1773464432221,0.042186,71102.0,71091.0,0.06697743]
[1773464434235,0.042187,71101.0,71091.0,0.06697743]
[1773464434933,0.06712801,71109.0,71088.0,0.0014]
[1773464435233,0.042189,71098.0,71088.0,0.0014]
[1773464437835,0.042187,71101.0,71089.0,0.042194]
[1773464439837,0.042187,71100.0,71089.0,0.042194]
[1773464440526,0.042185,71105.0,71093.0,0.06697743]
[1773464440726,0.042185,71105.0,71094.0,0.06837743]
[1773464441029,0.042185,71104.0,71094.0,0.06837743]
[1773464441626,0.042184,71107.0,71095.0,0.04219]
[1773464441827,0.042185,71104.0,71094.0,0.06837743]
[1773464442433,0.042184,71106.0,71094.0,0.06837743]
[1773464442633,0.042185,71104.0,71094.0,0.0014]
[1773464443728,0.13826111,71104.0,71095.0,0.0014]
[1773464443933,0.13826111,71104.0,71085.0,0.06697743]
[1773464443934,0.04219,71096.0,71085.0,0.06697743]
[1773464444424,0.04219,71096.0,71085.0,0.10917343]
[1773464444623,0.04219,71096.0,71086.0,0.0014]
[1773464445026,0.04219,71096.0,71087.0,0.0014]
[1773464445428,0.04219,71096.0,71084.0,0.042197]
[1773464445628,0.06512981,71104.0,71085.0,0.0014]
[1773464446033,0.042191,71094.0,71086.0,0.0014]
[1773464446529,0.042191,71094.0,71087.0,0.0014]
[1773464448236,0.04219,71096.0,71087.0,0.0014]
[1773464449030,0.04219,71095.0,71087.0,0.0014]
[1773464449331,0.04219,71095.0,71088.0,0.0014]
[1773464449529,0.042191,71094.0,71088.0,0.0014]
[1773464450232,0.04219,71096.0,71088.0,0.0014]
[1773464450636,0.04219,71095.0,71088.0,0.0014]
[1773464455540,0.042191,71094.0,71082.0,0.042198]
[1773464455734,0.042191,71094.0,71083.0,0.0014]
[1773464456130,0.06020075,71098.0,71080.0,0.2525504]
[1773464456335,0.06020075,71098.0,71075.0,0.31553426]
[1773464456336,0.042197,71084.0,71075.0,0.0014]
[1773464456529,0.042198,71083.0,71072.0,0.2525504]
[1773464456737,0.042198,71083.0,71073.0,0.0014]
[1773464457139,0.042196,71085.0,71074.0,0.0014]
[1773464457339,0.042196,71085.0,71072.0,0.042204]
[1773464457533,0.042196,71085.0,71073.0,0.0014]
[1773464458143,0.042196,71085.0,71074.0,0.0014]
[1773464458636,0.042196,71085.0,71072.0,0.042204]
[1773464458936,0.042196,71085.0,71073.0,0.0014]
[1773464459141,0.042196,71085.0,71072.0,0.042204]
[1773464459342,0.042195,71087.0,71073.0,0.0014]
[1773464459934,0.042195,71087.0,71074.0,0.0014]
[1773464460936,0.042195,71087.0,71074.0,0.043602]
[1773464462543,0.042196,71086.0,71074.0,0.043602]
[1773464465848,0.042196,71086.0,71074.0,0.042202]
[1773464466149,0.042196,71086.0,71075.0,0.0014]
[1773464466740,0.042196,71085.0,71075.0,0.0014]
[1773464467346,0.042196,71085.0,71074.0,0.042202]
[1773464467547,0.042196,71085.0,71075.0,0.0014]
[1773464467851,0.042196,71085.0,71074.0,0.042202]
[1773464468151,0.042196,71085.0,71075.0,0.0014]
[1773464468343,0.042196,71085.0,71074.0,0.042202]
[1773464468543,0.042196,71085.0,71075.0,0.0014]
[1773464469052,0.042196,71085.0,71076.0,0.0014]
[1773464469443,0.042196,71085.0,71077.0,0.0014]
[1773464469950,0.042196,71085.0,71078.0,0.0014]
[1773464470352,0.042196,71085.0,71074.0,0.042202]
[1773464470549,0.042196,71085.0,71075.0,0.0014]
[1773464471547,0.05178222,71089.0,71066.0,0.07075944]
[1773464471746,0.042202,71076.0,71067.0,0.0014]
[1773464472049,0.042202,71076.0,71068.0,0.0014]
[1773464472245,0.042201,71078.0,71068.0,0.0014]
[1773464474542,0.042201,71078.0,71066.0,0.042207]
[1773464474750,0.042201,71078.0,71067.0,0.0014]
[1773464476048,0.042201,71078.0,71067.0,0.043607]
[1773464477650,0.042202,71076.0,71068.0,0.0014]
[1773464477851,0.042202,71076.0,71069.0,0.0014]
[1773464480745,0.042201,71078.0,71069.0,0.0014]
[1773464480949,0.042201,71077.0,71069.0,0.0014]
[1773464485356,0.03734574,71087.0,71069.0,0.0014]
[1773464485543,0.23850282,71086.0,71069.0,0.0014]
[1773464485746,0.03719204,71086.0,71069.0,0.0014]
[1773464485957,0.042201,71077.0,71069.0,0.0014]
[1773464489060,0.03719204,71086.0,71069.0,0.0014]
[1773464489360,0.042201,71077.0,71069.0,0.0014]
[1773464491852,0.07446797,71090.0,71069.0,0.06798004]
[1773464492054,0.042198,71083.0,71071.0,0.10878404]
[1773464492249,0.042198,71083.0,71069.0,0.0014]
[1773464492250,0.042197,71085.0,71073.0,0.06658004]
[1773464492455,0.042197,71084.0,71074.0,0.06658004]
[1773464492661,0.042197,71084.0,71075.0,0.0014]
[1773464493156,0.042198,71083.0,71075.0,0.0014]
[1773464494164,0.042198,71082.0,71075.0,0.0014]
[1773464495065,0.042197,71084.0,71075.0,0.0014]
[1773464496260,0.04429726,71089.0,71076.0,0.0014]
[1773464496468,0.042202,71076.0,71064.0,0.042208]
[1773464496659,0.042202,71076.0,71065.0,0.0014]
[1773464496859,0.042202,71076.0,71064.0,0.042208]
[1773464497057,0.042202,71076.0,71065.0,0.0014]
[1773464501864,0.042202,71075.0,71065.0,0.0014]
[1773464502068,0.042202,71075.0,71065.0,0.00056]
[1773464507967,0.04289726,71082.0,71066.0,0.042207]
[1773464508368,0.042201,71077.0,71066.0,0.042207]
[1773464510374,0.042201,71077.0,71066.0,0.10925367]
[1773464510678,0.0422,71079.0,71066.0,0.10925367]
[1773464513372,0.0422,71079.0,71067.0,0.06898928]
[1773464514578,0.0422,71079.0,71067.0,0.11119628]
[1773464516079,0.03296872,71090.0,71069.0,0.06898928]
[1773464516282,0.042197,71083.0,71069.0,0.06898928]
[1773464517076,0.042197,71083.0,71072.0,0.11119228]
[1773464517378,0.042197,71083.0,71073.0,0.0014]
[1773464517773,0.042198,71082.0,71073.0,0.0014]
[1773464520775,0.042199,71081.0,71073.0,0.0014]
[1773464522785,0.042198,71083.0,71073.0,0.0014]
[1773464522976,0.042198,71082.0,71073.0,0.0014]
[1773464523375,0.042198,71082.0,71073.0,0.07038928]
[1773464523574,0.042196,71085.0,71076.0,0.06898928]
[1773464523874,0.042197,71084.0,71076.0,0.06898928]
[1773464526581,0.042196,71086.0,71076.0,0.06898928]
[1773464527374,0.03029586,71097.0,71074.0,0.06898928]
[1773464527582,0.2324292,71096.0,71074.0,0.06898928]
[1773464527880,0.20201718,71095.0,71074.0,0.06898928]
[1773464528082,0.20201718,71094.0,71074.0,0.06898928]
[1773464528271,0.20201718,71093.0,71074.0,0.06898928]
[1773464528480,0.20201718,71092.0,71074.0,0.06898928]
[1773464528680,0.20201718,71091.0,71074.0,0.06898928]
[1773464528884,0.20201718,71090.0,71074.0,0.06898928]
[1773464529182,0.042197,71084.0,71074.0,0.06898928]
[1773464530777,0.042196,71086.0,71074.0,0.06898928]
[1773464531284,0.042196,71085.0,71074.0,0.06898928]
[1773464533781,0.0422,71080.0,71069.0,0.06898928]
[1773464533986,0.0422,71080.0,71070.0,0.0014]
[1773464534575,0.042198,71082.0,71070.0,0.043605]
[1773464534777,0.042198,71082.0,71071.0,0.06898928]
[1773464536389,0.042199,71081.0,71071.0,0.06898928]
[1773464537489,0.042198,71083.0,71071.0,0.042204]
[1773464537679,0.042198,71083.0,71072.0,0.06898928]
[1773464542293,0.042198,71083.0,71073.0,0.06648565]
[1773464545490,0.042198,71083.0,71073.0,0.10868865]
[1773464545793,0.042196,71085.0,71073.0,0.10868865]
[1773464545992,0.042196,71085.0,71074.0,0.06648565]
[1773464546494,0.042196,71085.0,71071.0,0.06648565]
[1773464547991,0.042196,71085.0,71073.0,0.042203]
[1773464548192,0.042196,71085.0,71074.0,0.06648565]
[1773464549895,0.042196,71085.0,71074.0,0.10868765]
[1773464550201,0.042196,71085.0,71075.0,0.06648565]
[1773464550395,0.042196,71085.0,71076.0,0.0014]
[1773464550892,0.042196,71085.0,71076.0,0.06788565]
[1773464551794,0.042196,71085.0,71077.0,0.0014]
[1773464555597,0.042196,71086.0,71077.0,0.0014]
[1773464557491,0.042196,71085.0,71077.0,0.0014]
[1773464559697,0.042193,71091.0,71080.0,0.042199]
[1773464559903,0.02075322,71102.0,71082.0,0.06648565]
[1773464559904,0.042191,71094.0,71082.0,0.06648565]
[1773464560102,0.19862787,71093.0,71082.0,0.06648565]
[1773464560303,0.042191,71094.0,71083.0,0.06648565]
[1773464560504,0.19857282,71093.0,71083.0,0.06648565]
[1773464560801,0.042184,71107.0,71085.0,0.06648565]
[1773464560998,0.19857451,71106.0,71087.0,0.06648565]
[1773464561200,0.19857451,71105.0,71087.0,0.06648565]
[1773464561403,0.19857451,71104.0,71087.0,0.06648565]
[1773464561601,0.19857451,71103.0,71087.0,0.06648565]
[1773464561903,0.04219,71096.0,71087.0,0.06648565]
[1773464563103,0.001,71104.0,71088.0,0.06648565]
[1773464563297,0.001,71104.0,71091.0,0.10867765]
[1773464563904,0.001,71104.0,71092.0,0.0014]
[1773464564404,0.001,71104.0,71092.0,0.06788565]
[1773464564604,0.02137459,71112.0,71092.0,0.06788565]
[1773464564803,0.19828983,71111.0,71092.0,0.06788565]
[1773464565100,0.19828983,71110.0,71092.0,0.06788565]
[1773464565295,0.02137459,71112.0,71092.0,0.06788565]
[1773464565499,0.19821809,71111.0,71092.0,0.06788565]
[1773464565699,0.19821809,71110.0,71092.0,0.06788565]
[1773464565895,0.02237459,71112.0,71092.0,0.06788565]
[1773464566095,0.02237459,71112.0,71101.0,0.06648565]
[1773464566096,0.001,71112.0,71101.0,0.06648565]
[1773464566397,0.042182,71110.0,71101.0,0.06648565]
[1773464566698,0.001,71111.0,71102.0,0.0014]
[1773464566699,0.042183,71108.0,71102.0,0.0014]
[1773464566905,0.001,71111.0,71102.0,0.0014]
[1773464566906,0.042183,71107.0,71102.0,0.0014]
[1773464567404,0.002,71111.0,71102.0,0.0014]